bitfinex-derivatives/quotes_BNBF0:USTF0_20250424
["timestamp","ask_amount","ask_price","bid_price","bid_amount"]
[1745531028237,0.28999638,601.06,599.53,0.30611337]
[1745531029440,1.27376227,601.37,599.53,0.30611337]
[1745531029741,0.28996134,601.05,599.53,0.30611337]
[1745531030039,1.27376227,601.37,599.53,0.30611337]
[1745531030240,1.27376227,601.35,599.53,0.30611337]
[1745531030742,0.28995651,601.34,599.52,1.039]
[1745531032443,1.27376227,601.81,599.52,1.039]
[1745531032746,0.28990337,601.33,599.52,1.039]
[1745531032944,1.27376227,601.81,599.52,1.039]
[1745531033747,0.28990337,601.8,599.52,1.039]
[1745531035547,1.27376227,601.85,599.52,1.039]
[1745531036142,1.27376227,601.85,599.52,2.075]
[1745531036546,1.27376227,601.84,599.52,2.075]
[1745531036746,1.56366081,601.84,599.52,2.075]
[1745531037844,1.56366081,601.84,599.52,3.573]
[1745531038449,1.27376227,601.84,599.52,3.573]
[1745531039646,0.28989974,601.83,599.52,3.573]
[1745531041459,1.27376227,601.84,599.52,3.573]
[1745531041662,1.27376227,601.57,599.52,3.573]
[1745531042660,0.28995409,601.56,599.52,3.573]
[1745531047465,1.27376227,602.04,599.52,3.573]
[1745531047964,1.27376227,601.95,599.52,3.573]
[1745531048757,0.28993718,601.94,599.52,3.573]
[1745531052668,0.28993718,601.94,599.52,4.743]
[1745531052865,1.27376227,601.38,599.52,4.743]
[1745531053770,0.28998913,601.37,599.52,4.743]
[1745531055469,0.28998913,601.37,599.53,0.30616726]
[1745531055669,0.28998913,601.37,599.52,4.743]
[1745531055870,1.27376227,601.16,599.52,3.704]
[1745531056072,1.27376227,601.16,599.53,0.30616769]
[1745531056673,1.27376227,601.16,599.52,3.704]
[1745531056864,0.29001571,601.15,599.52,3.704]
[1745531058265,0.29001571,601.15,599.52,4.884]
[1745531059472,1.27376227,601.29,599.52,4.884]
[1745531060669,0.29,601.28,599.52,4.884]
[1745531061266,1.27376227,601.27,599.52,4.884]
[1745531062771,0.29000242,601.26,599.52,4.884]
[1745531065473,1.27376227,601.27,599.52,4.884]
[1745531065774,0.29000242,601.25,599.52,4.884]
[1745531066574,0.29000242,601.25,599.53,0.30614583]
[1745531066575,1.56376469,601.25,599.53,0.30614583]
[1745531066875,1.56376469,601.25,599.52,4.884]
[1745531067073,1.56376469,601.25,599.53,0.30614841]
[1745531068176,1.56376469,601.25,599.52,4.884]
[1745531068476,1.27376227,601.25,599.53,0.30614697]
[1745531068670,0.28999517,601.24,599.53,0.30614697]
[1745531069077,1.27376227,601.13,599.53,0.30614697]
[1745531069277,1.27376227,601.13,599.52,4.884]
[1745531071877,0.29000967,601.12,599.53,0.30614958]
[1745531072071,0.29000967,601.12,599.52,4.884]
[1745531072276,0.29000967,601.12,599.53,0.30615011]
[1745531072476,0.29000967,601.12,599.52,4.884]
[1745531074578,1.27376227,601.32,599.52,4.884]
[1745531074879,0.29000242,601.11,599.52,4.884]
[1745531075074,1.27376227,601.32,599.52,4.884]
[1745531075877,0.28998671,601.31,599.52,4.884]
[1745531077382,1.27376227,601.32,599.52,4.884]
[1745531077681,1.27376227,601.29,599.52,4.884]
[1745531083784,2.16716497,602.01,599.52,4.884]
[1745531083785,1.27376227,601.24,599.52,4.884]
[1745531086288,1.27376227,601.13,599.52,4.884]
[1745531086887,0.29,601.12,599.52,4.884]
[1745531089488,1.27376227,601.25,599.52,4.884]
[1745531089790,0.2899855,601.24,599.52,4.884]
[1745531090889,1.27376227,601.2,599.52,4.884]
[1745531092789,0.28999154,601.19,599.52,4.884]
[1745531095491,1.27376227,601.31,599.52,4.884]
[1745531095789,0.28997825,601.18,599.52,4.884]
[1745531096090,1.27376227,601.31,599.52,4.884]
[1745531096690,1.27376227,601.32,599.52,4.884]
[1745531096890,0.28997825,601.3,599.52,4.884]
[1745531098493,1.27376227,601.32,599.52,4.884]
[1745531099292,2.16716497,602.07,599.52,4.884]
[1745531099293,1.27376227,601.21,599.52,4.884]
[1745531099792,0.28999033,601.2,599.52,4.884]
[1745531100793,0.28999033,601.2,599.53,0.30614677]
[1745531101394,0.28999033,601.2,599.54,0.30614677]
[1745531101593,1.27376227,601.21,599.55,0.30614677]
[1745531101894,1.5637659,601.19,599.56,0.30614677]
[1745531102088,1.5637659,601.19,599.35,0.30614677]
[1745531102292,1.5637659,601.19,599.36,0.30614677]
[1745531102491,1.5637659,601.19,599.35,0.30614677]
[1745531102892,1.5637659,601.19,599.37,0.2900145]
[1745531103193,1.5637659,601.19,599.38,0.30614677]
[1745531103494,1.5637659,601.19,599.39,1.044]
[1745531103695,1.5637659,601.19,599.4,1.86814677]
[1745531103888,1.5637659,601.19,599.41,0.30614677]
[1745531104192,1.5637659,601.19,599.41,1.62814677]
[1745531104495,1.27376227,600.95,599.42,1.36898061]
[1745531104789,1.27376227,600.95,599.43,0.30614677]
[1745531104988,1.27376227,600.95,599.43,1.75614677]
[1745531105192,1.27376227,600.95,599.44,0.30614677]
[1745531105593,1.27376227,600.95,599.43,1.45]
[1745531105793,1.27376227,600.95,599.44,0.30614638]
[1745531107195,1.27376227,600.95,599.43,1.45]
[1745531107389,1.27376227,600.95,599.44,0.30614657]
[1745531107694,0.29002779,600.94,599.44,0.30614657]
[1745531108887,0.29002779,600.94,599.45,0.30614503]
[1745531109092,0.29002779,600.94,599.44,0.30614503]
[1745531109292,0.29002779,600.94,599.46,0.30614503]
[1745531109490,0.29002779,600.94,599.47,0.30614503]
[1745531109794,0.29002779,600.94,599.48,0.30614503]
[1745531109994,0.29002779,600.94,599.44,0.30614503]
[1745531110196,0.29002779,600.94,599.45,0.30614503]
[1745531110395,0.29002779,600.94,599.46,0.30613507]
[1745531110597,1.27376227,600.99,599.44,0.30613507]
[1745531110796,0.29002296,600.93,599.45,0.30613507]
[1745531110995,0.29002296,600.93,599.44,0.30613507]
[1745531111797,0.29002296,600.93,599.44,1.36896891]
[1745531112092,0.29002296,600.93,599.45,0.30613498]
[1745531113496,1.27376227,601.03,599.45,0.30613498]
[1745531113892,1.27376227,600.99,599.48,1.06283384]
[1745531114097,1.27376227,600.99,599.49,0.30613498]
[1745531114794,0.29000725,600.98,599.49,0.30613498]
[1745531115698,0.29000725,600.98,599.48,1.06283384]
[1745531115894,0.29000725,600.98,599.49,0.30612338]
[1745531116500,1.27376227,600.99,599.49,0.30612338]
[1745531117300,1.27376227,600.99,599.48,1.06283384]
[1745531117496,1.27376227,600.99,599.49,0.30612073]
[1745531117897,0.29000725,600.98,599.49,0.30612073]
[1745531118799,0.29000725,600.98,599.48,1.06283384]
[1745531118992,1.27376227,600.94,599.52,1.06283384]
[1745531121495,1.27376227,600.94,599.53,0.30612]
[1745531121901,1.27376227,600.94,599.52,1.06283384]
[1745531122201,1.27376227,600.94,599.53,0.30612]
[1745531122397,0.29000846,600.97,599.53,0.30612]
[1745531122597,1.27376227,601.29,599.5,0.30612]
[1745531122798,1.27376227,601.29,599.47,0.29000846]
[1745531123099,1.27376227,601.29,599.48,0.30612056]
[1745531123499,1.27376227,601.29,599.47,0.29000846]
[1745531123700,1.27376227,601.29,599.48,0.30612028]
[1745531123901,0.28996738,601.28,599.48,0.30612028]
[1745531125096,0.28996738,601.28,599.49,0.30611164]
[1745531125298,0.28996738,601.28,599.5,0.30611164]
[1745531125500,1.27376227,601.34,599.51,0.30611164]
[1745531125796,1.27376227,601.34,599.52,0.30611164]
[1745531125997,1.27376227,601.34,599.35,1.06283384]
[1745531126297,1.27376227,601.34,599.36,0.30611126]
[1745531126801,0.28997584,601.33,599.37,0.28997584]
[1745531127002,0.28997584,601.33,599.38,0.30611126]
[1745531128606,1.27376227,601.39,599.38,0.30611126]
[1745531128801,0.28996738,601.32,599.37,0.28996738]
[1745531128999,0.28996738,601.32,599.38,0.30611126]
[1745531131607,1.27376227,601.4,599.38,0.30611126]
[1745531131803,0.28996134,601.31,599.35,0.30611126]
[1745531132205,1.27376227,601.4,599.35,0.30611126]
[1745531132907,0.28996496,601.39,599.36,0.28996496]
[1745531133107,0.28996496,601.39,599.37,0.30611126]
[1745531134503,0.28996496,601.39,599.38,0.30610561]
[1745531134809,0.28996496,601.39,599.39,0.30610561]
[1745531135006,0.28996496,601.39,599.37,0.30610561]
[1745531135207,0.28996496,601.39,599.38,0.30610561]
[1745531135409,0.28996496,601.39,599.39,0.30610561]
[1745531135606,0.28996496,601.39,599.37,0.30610561]
[1745531135806,0.28996496,601.39,599.38,0.30610561]
[1745531136007,0.28996496,601.39,599.37,0.30610561]
[1745531137510,1.27376227,601.45,599.31,1.06283384]
[1745531137707,1.27376227,601.45,599.32,0.30610265]
[1745531138511,1.27376227,601.4,599.33,1.06283384]
[1745531138712,1.27376227,601.4,599.34,0.30610265]
[1745531139113,1.27376227,601.4,599.33,1.35279639]
[1745531139313,1.27376227,601.4,599.34,0.30609904]
[1745531140610,1.27376227,601.4,599.33,1.06283384]
[1745531140807,0.28996617,601.39,599.34,0.30609681]
[1745531141816,1.27376227,601.37,599.38,1.06283384]
[1745531142017,1.27376227,601.37,599.39,0.30609681]
[1745531144017,1.27376227,601.37,599.4,0.30609704]
[1745531144316,1.27376227,601.37,599.41,0.30609704]
[1745531144519,1.27376227,601.34,599.41,1.06283384]
[1745531144713,1.27376227,601.34,599.42,0.30609704]
[1745531145518,1.27376227,601.34,599.43,0.30609704]
[1745531145712,1.27376227,601.34,599.44,0.30609704]
[1745531145912,1.27376227,601.34,599.42,0.30609704]
[1745531146112,1.27376227,601.34,599.43,0.30609704]
[1745531146418,1.27376227,601.34,599.44,0.30609704]
[1745531146617,1.27376227,601.34,599.41,1.06283384]
[1745531146618,1.27376227,601.34,599.42,0.30609704]
[1745531146818,0.28996375,601.33,599.43,0.30609704]
[1745531147018,0.28996375,601.33,599.41,1.06283384]
[1745531147518,1.27376227,601.32,599.42,1.06283384]
[1745531147718,1.27376227,601.32,599.43,0.30609676]
[1745531148715,1.27376227,601.32,599.42,1.06283384]
[1745531148916,1.27376227,601.32,599.43,0.30609676]
[1745531150420,1.27376227,601.32,599.44,0.30609638]
[1745531150720,1.27376227,601.32,599.45,0.30609638]
[1745531150920,1.27376227,601.32,599.44,0.30609638]
[1745531151119,1.27376227,601.32,599.45,0.30609638]
[1745531151316,1.27376227,601.32,599.44,0.30609638]
[1745531151923,1.27376227,601.32,599.43,1.06283384]
[1745531152119,1.27376227,601.32,599.44,0.30608703]
[1745531152823,1.27376227,601.31,599.44,1.36892087]
[1745531153123,1.56371636,601.31,599.45,0.30608703]
[1745531153419,1.56371636,601.31,599.44,1.06283384]
[1745531153622,1.56371636,601.31,599.45,0.30608016]
[1745531155025,1.56371636,601.31,599.44,1.06283384]
[1745531155227,1.56371636,601.31,599.45,0.30606947]
[1745531155526,1.27376227,601.31,599.45,0.30606947]
[1745531155826,2.15034117,608.7,599.45,0.30606947]
[1745531155827,1.27376227,601.68,599.45,0.30606947]
[1745531156027,0.28994684,601.3,599.43,0.28994684]
[1745531156223,1.27376227,601.68,599.44,0.30606947]
[1745531156728,1.27376227,601.68,599.43,0.28994684]
[1745531156929,0.28990578,601.67,599.44,0.3060794]
[1745531158228,0.28990578,601.67,599.43,0.28994684]
[1745531158423,1.27376227,601.65,599.44,0.30606367]
[1745531158829,1.27376227,601.65,599.43,0.28991665]
[1745531159630,1.27376227,601.65,599.44,0.30606082]
[1745531160731,0.28991665,601.66,599.44,0.30606082]
[1745531161326,0.28991665,601.66,599.45,1.319]
[1745531161524,1.27376227,601.69,599.46,0.30606082]
[1745531161725,0.28990216,601.65,599.46,0.30606082]
[1745531162532,0.28990216,601.65,599.47,2.389]
[1745531162725,0.28990216,601.65,599.48,0.30606082]
[1745531163532,1.27376227,601.56,599.48,0.30606082]
[1745531164032,1.27376227,601.56,599.47,2.389]
[1745531164233,1.27376227,601.56,599.48,0.30605739]
[1745531164733,0.28991303,601.55,599.48,0.30605739]
[1745531167135,0.28991303,601.55,599.47,2.67891303]
[1745531167331,0.28991303,601.55,599.48,0.30605782]
[1745531167630,1.27376227,601.57,599.48,0.30605782]
[1745531167835,0.28991182,601.54,599.48,0.30605782]
[1745531168735,0.28991182,601.54,599.47,2.67891182]
[1745531168938,0.28991182,601.54,599.48,0.30605422]
[1745531170238,0.28991182,601.54,599.47,2.67891182]
[1745531170431,1.27376227,601.6,599.48,0.30607097]
[1745531170635,0.28991061,601.53,599.48,0.30607097]
[1745531170834,1.27376227,601.47,599.48,0.30607097]
[1745531172738,1.27376227,601.35,599.48,0.30607097]
[1745531173034,1.27376227,601.35,599.47,3.74174445]
[1745531173435,1.27376227,601.35,599.47,3.45183384]
[1745531173738,1.27376227,601.35,599.49,0.30605741]
[1745531173938,0.28993114,601.34,599.5,0.30605741]
[1745531174133,0.28993114,601.34,599.48,0.30605741]
[1745531175739,0.28993114,601.34,599.47,2.67893114]
[1745531175936,0.28993114,601.34,599.48,0.3060565]
[1745531176539,1.27376227,601.42,599.48,0.3060565]
[1745531176841,0.28991786,601.33,599.48,0.3060565]
[1745531177143,1.27376227,601.42,599.48,0.3060565]
[1745531177441,1.27376227,601.42,599.49,0.30605588]
[1745531177742,1.27376227,601.42,599.47,2.67891786]
[1745531178041,0.28991786,601.41,599.47,2.67891786]
[1745531178541,0.28991786,601.41,599.48,0.30605769]
[1745531178743,1.27376227,601.3,599.51,1.06283384]
[1745531179843,0.28992752,601.29,599.51,1.06283384]
[1745531181043,0.28992752,601.29,599.49,0.28992752]
[1745531182540,1.27376227,601.83,599.47,2.389]
[1745531182744,1.27376227,601.83,599.49,0.28986835]
[1745531182944,0.28986835,601.28,599.49,0.28986835]
[1745531183145,1.27376227,601.83,599.49,0.28986835]
[1745531183946,1.56363062,601.82,599.49,0.28986835]
[1745531185546,1.27376227,601.82,599.47,1.235]
[1745531185747,0.28986956,601.81,599.49,0.28986956]
[1745531187149,0.28986956,601.81,599.5,1.045]
[1745531187548,0.28986956,601.81,599.51,0.30605691]
[1745531188449,1.27376227,601.82,599.51,0.30605691]
[1745531188850,0.28986594,601.8,599.51,0.30605691]
[1745531189852,0.28986594,601.8,599.5,1.33486594]
[1745531190154,1.27376227,601.46,599.51,0.30605691]
[1745531191349,1.27376227,601.46,599.5,1.33486594]
[1745531191554,1.27376227,601.46,599.52,1.187]
[1745531191755,1.27376227,601.46,599.53,0.30605663]
[1745531192953,1.27376227,601.46,599.52,1.187]
[1745531193147,1.27376227,601.46,599.53,0.30605719]
[1745531194557,1.27376227,601.46,599.52,1.187]
[1745531194854,0.28990699,601.45,599.53,0.30605691]
[1745531195556,1.27376227,601.37,599.53,0.30605691]
[1745531196156,1.27376227,601.37,599.52,1.187]
[1745531196354,1.27376227,601.37,599.53,0.30605663]
[1745531197750,1.27376227,601.37,599.52,1.187]
[1745531197954,0.28991786,601.36,599.53,0.30605691]
[1745531198356,1.27376227,601.31,599.53,0.30605691]
[1745531199353,1.27376227,601.31,599.52,2.5397517]
[1745531199557,1.27376227,601.31,599.53,1.24105719]
[1745531199758,1.27376227,601.31,599.54,0.30605719]
[1745531200757,1.27376227,601.36,599.54,1.36889103]
[1745531200958,0.28992389,601.3,599.55,0.30605719]
[1745531203360,0.28992389,601.3,599.54,1.06283384]
[1745531203557,1.27376227,601.36,599.54,1.06283384]
[1745531203859,0.28991665,601.29,599.54,1.06283384]
[1745531204054,0.28991665,601.29,599.53,1.22491665]
[1745531204460,0.28991665,601.29,599.54,0.30605369]
[1745531206559,1.27376227,601.47,599.54,0.30605369]
[1745531206759,1.27376227,601.45,599.54,0.30605369]
[1745531206960,0.28990457,601.28,599.54,0.30605369]
[1745531207157,1.27376227,601.45,599.54,0.30605369]
[1745531207356,1.27376227,601.45,599.53,1.22490457]
[1745531207553,1.27376227,601.45,599.54,0.30605293]
[1745531207859,0.28990699,601.44,599.54,0.30605293]
[1745531208861,0.28990699,601.44,599.53,1.22490457]
[1745531209561,1.27376227,601.45,599.53,0.935]
[1745531209757,1.27376227,601.45,599.54,0.3060539]
[1745531209964,0.28990699,601.43,599.54,0.3060539]
[1745531210563,0.28990699,601.43,599.53,0.935]
[1745531210862,0.28990699,601.43,599.54,0.30605363]
[1745531211959,0.28990699,601.43,599.54,1.87505363]
[1745531212158,0.28990699,601.43,599.55,0.30605363]
[1745531212565,1.27376227,601.53,599.55,0.30605363]
[1745531212865,0.28989612,601.42,599.55,0.30605363]
[1745531213168,1.27376227,601.53,599.55,0.30605363]
[1745531213361,1.27376227,601.43,599.55,0.30605363]
[1745531213866,0.2899082,601.42,599.56,0.30605335]
[1745531214070,0.2899082,601.42,599.55,0.30605335]
[1745531214269,0.2899082,601.42,599.56,0.30605335]
[1745531214469,0.2899082,601.42,599.57,0.30605335]
[1745531214665,0.2899082,601.42,599.55,0.30605335]
[1745531214864,0.2899082,601.42,599.56,0.30605335]
[1745531215063,0.2899082,601.42,599.57,0.30605335]
[1745531215369,0.2899082,601.42,599.58,0.30605335]
[1745531215570,1.27376227,601.43,599.59,0.30605335]
[1745531215766,0.2899082,601.41,599.59,0.30605335]
[1745531219973,0.2899082,601.41,599.58,1.198]
[1745531220173,0.2899082,601.41,599.59,0.30605255]
[1745531220471,1.27376227,601.4,599.59,0.30605255]
[1745531221470,1.27376227,601.4,599.6,1.064]
[1745531221774,1.27376227,601.4,599.61,0.30605255]
[1745531221975,0.28990457,601.39,599.61,0.30605255]
[1745531222576,0.28990457,601.39,599.6,1.064]
[1745531222768,0.28990457,601.39,599.61,0.30605311]
[1745531223476,1.27376227,601.21,599.62,1.06283384]
[1745531223674,1.27376227,601.21,599.63,0.30605311]
[1745531224177,1.27376227,601.21,599.62,1.06283384]
[1745531224381,1.27376227,601.21,599.63,0.30605283]
[1745531224976,0.2899251,601.2,599.63,0.30605283]
[1745531225573,1.56368737,601.2,599.63,0.30605283]
[1745531227675,1.27376227,601.2,599.63,0.30605283]
[1745531227879,0.28992631,601.19,599.63,0.30605283]
[1745531228880,0.28992631,601.19,599.62,1.06283384]
[1745531229081,0.28992631,601.19,599.63,0.30603648]
[1745531229681,0.28992631,601.19,599.66,1.06283384]
[1745531229881,0.28992631,601.19,599.67,0.30603648]
[1745531231983,0.28992631,601.19,599.66,1.06283384]
[1745531232183,0.28992631,601.19,599.67,0.30604801]
[1745531232381,0.28992631,601.19,599.66,0.30604801]
[1745531232576,0.28992631,601.19,599.67,0.30604801]
[1745531232780,0.28992631,601.19,599.66,0.30604801]
[1745531232980,0.28992631,601.19,599.67,0.30604801]
[1745531233182,0.28992631,601.19,599.68,0.30604801]
[1745531233384,0.28992631,601.19,599.66,0.30604801]
[1745531233578,1.27376227,601.22,599.67,0.30604801]
[1745531233778,0.28992027,601.18,599.65,1.06283384]
[1745531233983,0.28992027,601.18,599.66,0.30604866]
[1745531234983,0.28992027,601.18,599.67,0.30604866]
[1745531235181,0.28992027,601.18,599.66,1.119]
[1745531235383,0.28992027,601.18,599.67,2.86604729]
[1745531235584,0.28992027,601.18,599.68,0.30604729]
[1745531236083,0.28992027,601.18,599.68,1.35304729]
[1745531236283,0.28992027,601.18,599.69,0.30604729]
[1745531236583,1.27376227,601.23,599.69,0.30604729]
[1745531236780,1.27376227,601.23,599.68,1.047]
[1745531236990,0.28991544,601.17,599.68,1.047]
[1745531239583,1.27376227,601.3,599.68,1.047]
[1745531240986,0.28990699,601.29,599.68,1.047]
[1745531242488,1.27376227,601.62,599.68,1.047]
[1745531242889,0.28986835,601.61,599.68,1.047]
[1745531245484,1.27376227,601.65,599.68,1.047]
[1745531245790,0.28986714,601.64,599.68,1.047]
[1745531250493,1.27376227,601.63,599.68,1.047]
[1745531251890,0.28987439,601.62,599.68,1.047]
[1745531253194,1.27376227,601.35,599.68,1.047]
[1745531254793,0.2899082,601.34,599.68,1.047]
[1745531257595,1.27376227,601.4,599.69,0.30606218]
[1745531257897,0.28991665,601.33,599.67,2.56]
[1745531258197,0.28991665,601.33,599.68,0.3060619]
[1745531258796,0.28991665,601.33,599.67,2.56]
[1745531258996,0.28991665,601.33,599.68,0.30606162]
[1745531259297,1.27376227,601.26,599.68,0.30606162]
[1745531260897,0.28993476,601.25,599.68,0.30606162]
[1745531261598,0.28993476,601.25,599.68,1.69306162]
[1745531261797,0.28993476,601.25,599.69,0.30606162]
[1745531262098,1.27376227,601.23,599.69,0.30606162]
[1745531263800,0.28993718,601.22,599.69,0.30606162]
[1745531265100,0.28993718,601.22,599.68,1.387]
[1745531265300,0.28993718,601.22,599.69,0.30606096]
[1745531265801,0.28993718,601.22,599.68,1.387]
[1745531266002,1.27376227,601.11,599.68,1.387]
[1745531266902,0.28995167,601.1,599.68,1.387]
[1745531267299,0.28995167,601.1,599.68,2.748]
[1745531267502,0.28995167,601.1,599.68,3.712]
[1745531272603,1.2733802,601.4,599.68,3.712]
[1745531273105,1.2733802,601.64,599.68,3.712]
[1745531273905,0.28988767,601.63,599.68,3.712]
[1745531275705,1.2733802,601.67,599.68,3.712]
[1745531275905,0.28988405,601.62,599.68,3.712]
[1745531278502,1.2733802,601.8,599.68,3.712]
[1745531278906,0.28986835,601.79,599.68,3.712]
[1745531280404,1.2733802,601.73,599.68,3.712]
[1745531280709,1.2733802,601.73,599.68,4.981]
[1745531281810,0.28988405,601.72,599.68,4.981]
[1745531283214,1.2733802,601.65,599.68,4.981]
[1745531284815,0.28989371,601.64,599.68,4.981]
[1745531285816,1.2733802,601.61,599.68,4.981]
[1745531287913,0.2899251,601.6,599.68,4.981]
[1745531289221,1.2733802,601.55,599.68,4.981]
[1745531290916,0.28991786,601.54,599.68,4.981]
[1745531293521,1.2733802,601.59,599.68,4.981]
[1745531293921,0.28991303,601.58,599.68,4.981]
[1745531296520,1.2733802,601.59,599.68,4.981]
[1745531296825,0.28991303,601.57,599.68,4.981]
[1745531298624,1.2733802,601.2,599.68,4.981]
[1745531299924,1.2733802,601.2,599.68,3.62]
[1745531300128,0.28996013,601.19,599.68,1.269]
[1745531302625,1.2733802,601.24,599.68,1.269]
[1745531303030,0.28996496,601.18,599.68,1.269]
[1745531303431,0.28996496,601.18,599.43,0.28996496]
[1745531303634,0.28996496,601.18,599.44,0.30612013]
[1745531303828,0.28996496,601.18,599.43,0.28996496]
[1745531304031,0.28996496,601.18,599.44,0.30612013]
[1745531305333,0.28996496,601.18,599.43,0.28996496]
[1745531305528,0.28996496,601.18,599.44,0.30611896]
[1745531305730,1.2733802,601.19,599.35,0.30611896]
[1745531305928,0.29001208,601.17,599.43,0.29001208]
[1745531306127,0.29001208,601.17,599.44,0.30611896]
[1745531306529,0.29001208,601.17,599.35,0.30611896]
[1745531306829,0.29001208,601.17,599.34,1.05992579]
[1745531307033,0.29001208,601.17,599.36,0.29001208]
[1745531307234,0.29001208,601.17,599.37,1.3660517]
[1745531307434,0.29001208,601.17,599.38,0.30612591]
[1745531308438,0.29001208,601.17,599.37,1.05992579]
[1745531308638,1.2733802,601.24,599.38,0.30612603]
[1745531308937,0.29000242,601.16,599.38,0.30612603]
[1745531309132,1.2733802,601.24,599.38,0.30612603]
[1745531309738,2.16651493,601.89,599.38,0.30612603]
[1745531309739,1.2733802,601.14,599.4,1.05992579]
[1745531310236,1.2733802,601.14,599.41,0.30612603]
[1745531311532,1.2733802,601.14,599.4,1.05992579]
[1745531311732,1.2733802,601.14,599.41,0.30612575]
[1745531311934,0.29001088,601.13,599.41,0.30612575]
[1745531312838,1.2733802,601.1,599.45,1.05992579]
[1745531313239,1.2733802,601.1,599.46,0.30612519]
[1745531315035,0.29000967,601.09,599.46,0.30612519]
[1745531315842,0.29000967,601.09,599.46,1.36605098]
[1745531316042,0.29000967,601.09,599.47,0.30612519]
[1745531317645,1.2733802,601.11,599.47,0.30612519]
[1745531318044,0.29000725,601.08,599.47,0.30612519]
[1745531318645,1.2733802,601.06,599.52,1.05992579]
[1745531318844,1.2733802,601.06,599.53,0.30612519]
[1745531320845,0.29000604,601.05,599.53,0.30612519]
[1745531321946,0.29000604,601.05,599.47,0.30612519]
[1745531322145,0.29000604,601.05,599.48,0.30612519]
[1745531322343,0.29000604,601.05,599.47,0.30612519]
[1745531323549,1.2733802,601.18,599.47,0.30612519]
[1745531323843,1.2733802,601.18,599.46,1.05992579]
[1745531324043,0.28999879,601.17,599.47,0.30610706]
[1745531324646,0.28999879,601.17,599.43,0.30610706]
[1745531324947,0.28999879,601.17,599.44,0.30610706]
[1745531325147,0.28999879,601.17,599.43,0.30610706]
[1745531325346,0.28999879,601.17,599.44,0.30610706]
[1745531325546,0.28999879,601.17,599.43,0.30610706]
[1745531325743,0.28999879,601.17,599.44,0.30610706]
[1745531325946,0.28999879,601.17,599.45,0.30610706]
[1745531326142,0.28999879,601.17,599.43,0.30610706]
[1745531326346,0.28999879,601.17,599.44,0.30610706]
[1745531326648,1.2733802,601.29,599.45,0.30610706]
[1745531326849,0.28999033,601.16,599.42,0.59609739]
[1745531327048,1.2733802,601.29,599.43,0.30610706]
[1745531327950,0.28998067,601.28,599.43,0.30610706]
[1745531328550,0.28998067,601.28,599.42,0.28999033]
[1745531328750,0.28998067,601.28,599.43,0.30610694]
[1745531329350,0.28998067,601.28,599.42,0.28999033]
[1745531329550,0.28998067,601.28,599.43,0.30610694]
[1745531329745,1.2733802,601.41,599.43,0.30610694]
[1745531329947,0.28996617,601.27,599.38,0.30610694]
[1745531330148,0.28996617,601.27,599.42,0.28996617]
[1745531330448,1.2733802,601.41,599.43,0.30610694]
[1745531331352,1.2733802,601.41,599.43,1.42710694]
[1745531331547,1.2733802,601.41,599.44,0.30610694]
[1745531331749,1.2733802,601.41,599.43,1.121]
[1745531331946,1.2733802,601.41,599.44,0.30610551]
[1745531332147,0.2899553,601.4,599.44,0.30610551]
[1745531332550,1.2733802,601.41,599.44,0.30610551]
[1745531332850,0.2899553,601.39,599.44,0.30610551]
[1745531335555,1.2733802,601.41,599.44,0.30610551]
[1745531336055,0.2899553,601.4,599.44,0.30610551]
[1745531336551,0.2899553,601.4,599.45,0.30610755]
[1745531336750,0.2899553,601.4,599.44,0.30610755]
[1745531336955,0.2899553,601.4,599.45,0.30610755]
[1745531337157,0.2899553,601.4,599.44,0.30610755]
[1745531337351,0.2899553,601.4,599.45,0.30610755]
[1745531337554,0.2899553,601.4,599.44,0.30610755]
[1745531338656,1.2733802,601.41,599.44,0.30610755]
[1745531339058,1.2733802,601.37,599.44,0.30610755]
[1745531339557,1.2733802,601.37,599.43,1.4109553]
[1745531339755,1.2733802,601.37,599.44,0.3061126]
[1745531341263,1.2733802,601.08,599.49,1.05992579]
[1745531341452,1.2733802,601.08,599.5,0.3061126]
[1745531341853,0.28998792,601.07,599.5,0.3061126]
[1745531342358,0.28998792,601.07,599.51,0.3061133]
[1745531342556,0.28998792,601.07,599.5,0.3061133]
[1745531342859,1.2733802,601.06,599.5,1.36603909]
[1745531343060,1.2733802,601.06,599.51,0.3061133]
[1745531343762,1.2733802,601.06,599.5,1.05992579]
[1745531343961,1.2733802,601.06,599.51,0.30611217]
[1745531344961,0.28998913,601.05,599.51,0.30611217]
[1745531345356,0.28998913,601.05,599.52,0.30611217]
[1745531345556,0.28998913,601.05,599.53,0.30611217]
[1745531345762,0.28998913,601.05,599.49,0.30611217]
[1745531345962,0.28998913,601.05,599.5,0.30611217]
[1745531346161,0.28998913,601.05,599.49,0.30611217]
[1745531346361,0.28998913,601.05,599.5,0.30611217]
[1745531346561,0.28998913,601.05,599.51,0.30611217]